fUSD/lending_fUSD_20240119
["ID","MTS","AMOUNT","RATE_DAILY","PERIOD"]
[312229015,1705696269364,-500.0,0.00025205,2]
[312229016,1705696269375,-500.0,0.00025205,2]
[312229017,1705696269385,-500.0,0.00025205,2]
[312229018,1705696269395,-500.0,0.00025205,2]
[312229019,1705696269406,-507.59499864,0.00025205,2]
[312229020,1705696269416,-365.22,0.00025205,2]
[312229021,1705696269425,-500.0,0.00025205,2]
[312229022,1705696269435,-500.0,0.00025205,2]
[312229023,1705696269444,-500.0,0.00025205,2]
[312229024,1705696269454,-500.0,0.00025205,2]
[312229025,1705696269463,-500.0,0.00025205,2]
[312229026,1705696269473,-602.83,0.00025205,2]
[312229027,1705696269482,-205.23,0.00025205,2]
[312229028,1705696269491,-500.0,0.00025205,2]
[312229029,1705696269500,-500.0,0.00025205,2]
[312229030,1705696269510,-500.0,0.00025205,2]
[312229031,1705696269519,-500.0,0.00025205,2]
[312229032,1705696269529,-500.0,0.00025205,2]
[312229033,1705696269539,-500.0,0.00025205,2]
[312229034,1705696269549,-496.99,0.00025205,2]
[312229035,1705696269559,-500.0,0.00025205,2]
[312229036,1705696269569,-500.0,0.00025205,2]
[312229037,1705696269579,-500.0,0.00025205,2]
[312229038,1705696269590,-500.0,0.00025205,2]
[312229039,1705696269600,-500.0,0.00025205,2]
[312229040,1705696269609,-316.54361926,0.00025205,2]
[312229041,1705696269618,-500.0,0.00025205,2]
[312229042,1705696269630,-163.37,0.00025205,2]
[312229043,1705696269639,-500.0,0.00025205,2]
[312229044,1705696269648,-446.99,0.00025205,2]
[312229045,1705696269657,-500.0,0.00025205,2]
[312229046,1705696269667,-744.86,0.00025205,2]
[312229047,1705696269676,-500.0,0.00025205,2]
[312229048,1705696269685,-500.0,0.00025205,2]
[312229049,1705696269695,-500.0,0.00025205,2]
[312229050,1705696269704,-500.0,0.00025205,2]
[312229051,1705696269713,-500.0,0.00025205,2]
[312229052,1705696269723,-225.83,0.00025205,2]
[312229053,1705696269732,-1329.39,0.00025205,2]
[312229054,1705696269742,-500.0,0.00025205,2]
[312229055,1705696269751,-155.31,0.00025205,2]
[312229056,1705696269760,-550.39,0.00025205,2]
[312229057,1705696269769,-500.0,0.00025205,2]
[312229058,1705696269779,-500.0,0.00025205,2]
[312229059,1705696269788,-500.0,0.00025205,2]
[312229060,1705696269798,-500.0,0.00025205,2]
[312229061,1705696269806,-500.0,0.00025205,2]
[312229062,1705696269816,-500.0,0.00025205,2]
[312229063,1705696269825,-500.0,0.00025205,2]
[312229064,1705696269836,-433.11,0.00025205,2]
[312229065,1705696269846,-500.0,0.00025205,2]
[312229066,1705696269855,-500.0,0.00025205,2]
[312229067,1705696269865,-500.0,0.00025205,2]
[312229068,1705696269874,-500.0,0.00025205,2]
[312229069,1705696269884,-500.0,0.00025205,2]
[312229070,1705696269893,-569.6870936,0.00025205,2]
[312229071,1705696269903,-500.0,0.00025205,2]
[312229072,1705696269913,-586.82,0.00025205,2]
[312229073,1705696269922,-500.0,0.00025205,2]
[312229074,1705696269932,-500.0,0.00025205,2]
[312229075,1705696269942,-500.0,0.00025205,2]
[312229076,1705696269951,-500.0,0.00025205,2]
[312229077,1705696269960,-500.0,0.00025205,2]
[312229078,1705696269970,-335.57,0.00025205,2]
[312229079,1705696269979,-500.0,0.00025205,2]
[312229080,1705696269988,-798.86,0.00025205,2]
[312229081,1705696269997,-500.0,0.00025205,2]
[312229082,1705696270007,-1147.75,0.00025205,2]
[312229083,1705696270016,-725.44,0.00025205,2]
[312229084,1705696270024,-500.0,0.00025205,2]
[312229085,1705696270033,-500.0,0.00025205,2]
[312229086,1705696270043,-255.70292483,0.00025205,2]
[312229087,1705696270052,-351.3,0.00025205,2]
[312229088,1705696270061,-500.0,0.00025205,2]
[312229089,1705696270071,-556.45,0.00025205,2]
[312229090,1705696270081,-723.12,0.00025205,2]
[312229091,1705696270091,-500.0,0.00025205,2]
[312229092,1705696270102,-500.0,0.00025205,2]
[312229093,1705696270113,-500.0,0.00025205,2]
[312229094,1705696270125,-873.87,0.00025205,2]
[312229095,1705696270135,-500.0,0.00025205,2]
[312229096,1705696270146,-500.0,0.00025205,2]
[312229097,1705696270157,-500.0,0.00025205,2]
[312229098,1705696270167,-500.0,0.00025205,2]
[312229099,1705696270177,-509.37,0.00025205,2]
[312229100,1705696270187,-500.0,0.00025205,2]
[312229101,1705696270197,-500.0,0.00025205,2]
[312229102,1705696270208,-500.0,0.00025205,2]
[312229103,1705696270219,-500.0,0.00025205,2]
[312229104,1705696270230,-1419.83,0.00025205,2]
[312229105,1705696270240,-500.0,0.00025205,2]
[312229106,1705696270250,-927.45,0.00025205,2]
[312229107,1705696270261,-610.79319545,0.00025205,2]
[312229108,1705696270271,-1148.85,0.00025205,2]
[312229109,1705696270282,-500.0,0.00025205,2]
[312229110,1705696270292,-500.0,0.00025205,2]
[312229111,1705696270302,-500.0,0.00025205,2]
[312229112,1705696270311,-551.92,0.00025205,2]
[312229113,1705696270321,-500.0,0.00025205,2]
[312229114,1705696270330,-910.74,0.00025205,2]
[312229115,1705696270341,-513.42,0.00025205,2]
[312229116,1705696270352,-621.62,0.00025205,2]
[312229117,1705696270362,-1454.65,0.00025205,2]
[312229118,1705696270371,-500.0,0.00025205,2]
[312229119,1705696270381,-500.0,0.00025205,2]
[312229120,1705696270390,-526.25,0.00025205,2]
[312229121,1705696270400,-500.0,0.00025205,2]
[312229122,1705696270410,-631.37,0.00025205,2]
[312229123,1705696270420,-512.94,0.00025205,2]
[312229124,1705696270431,-535.91,0.00025205,2]
[312229125,1705696270441,-500.0,0.00025205,2]
[312229126,1705696270450,-1401.96,0.00025205,2]
[312229127,1705696270460,-500.0,0.00025205,2]
[312229128,1705696270469,-500.0,0.00025205,2]
[312229129,1705696270478,-1959.51,0.00025205,2]
[312229130,1705696270488,-500.0,0.00025205,2]
[312229131,1705696270497,-589.29,0.00025205,2]
[312229132,1705696270507,-500.0,0.00025205,2]
[312229133,1705696270516,-500.0,0.00025205,2]
[312229134,1705696270525,-500.0,0.00025205,2]
[312229135,1705696270535,-2285.19,0.00025205,2]
[312229136,1705696270545,-500.0,0.00025205,2]
[312229137,1705696270555,-500.0,0.00025205,2]
[312229138,1705696270565,-500.0,0.00025205,2]
[312229139,1705696270576,-500.0,0.00025205,2]
[312229140,1705696270587,-1198.85,0.00025205,2]
[312229141,1705696270597,-500.0,0.00025205,2]
[312229142,1705696270607,-532.41,0.00025205,2]
[312229143,1705696270616,-500.0,0.00025205,2]
[312229144,1705696270626,-500.0,0.00025205,2]
[312229145,1705696270637,-500.0,0.00025205,2]
[312229146,1705696270646,-209.48,0.00025205,2]
[312229147,1705696270655,-500.0,0.00025205,2]
[312229148,1705696270666,-625.91832268,0.00025205,2]
[312229149,1705696270675,-500.0,0.00025205,2]
[312229150,1705696270683,-500.0,0.00025205,2]
[312229151,1705696270693,-500.0,0.00025205,2]
[312229152,1705696270702,-667.98,0.00025205,2]
[312229153,1705696270711,-500.0,0.00025205,2]
[312229154,1705696270721,-500.0,0.00025205,2]
[312229155,1705696270730,-500.0,0.00025205,2]
[312229156,1705696270739,-500.0,0.00025205,2]
[312229157,1705696270748,-1258.01,0.00025205,2]
[312229158,1705696270758,-500.0,0.00025205,2]
[312229159,1705696270767,-500.0,0.00025205,2]
[312229160,1705696270777,-500.0,0.00025205,2]
[312229161,1705696270787,-500.0,0.00025205,2]
[312229162,1705696270796,-500.0,0.00025205,2]
[312229163,1705696270806,-500.0,0.00025205,2]
[312229164,1705696270816,-500.0,0.00025205,2]
[312229165,1705696270826,-1139.48,0.00025205,2]
[312229166,1705696270839,-500.0,0.00025205,2]
[312229167,1705696270849,-1322.95,0.00025205,2]
[312229168,1705696270859,-1318.14,0.00025205,2]
[312229169,1705696270869,-500.0,0.00025205,2]
[312229170,1705696270879,-500.0,0.00025205,2]
[312229171,1705696270890,-500.0,0.00025205,2]
[312229172,1705696270900,-500.0,0.00025205,2]
[312229173,1705696270912,-500.0,0.00025205,2]
[312229174,1705696270922,-500.0,0.00025205,2]
[312229175,1705696270932,-500.0,0.00025205,2]
[312229176,1705696270942,-500.0,0.00025205,2]
[312229177,1705696270953,-500.0,0.00025205,2]
[312229178,1705696270964,-500.0,0.00025205,2]
[312229179,1705696270975,-1535.97,0.00025205,2]
[312229180,1705696270986,-3452.31,0.00025205,2]
[312229181,1705696270997,-500.0,0.00025205,2]
[312229182,1705696271007,-500.0,0.00025205,2]
[312229183,1705696271018,-500.0,0.00025205,2]
[312229184,1705696271028,-500.0,0.00025205,2]
[312229185,1705696271038,-4130.66,0.00025205,2]
[312229186,1705696271048,-500.0,0.00025205,2]
[312229187,1705696271057,-500.0,0.00025205,2]
[312229188,1705696271067,-500.0,0.00025205,2]
[312229189,1705696271077,-1575.95,0.00025205,2]
[312229190,1705696271089,-500.0,0.00025205,2]
[312229191,1705696271104,-500.0,0.00025205,2]
[312229192,1705696271114,-500.0,0.00025205,2]
[312229193,1705696271127,-500.0,0.00025205,2]
[312229194,1705696271137,-153.72,0.00025205,2]
[312229195,1705696271147,-500.0,0.00025205,2]
[312229196,1705696271157,-2438.69,0.00025205,2]
[312229197,1705696271166,-500.0,0.00025205,2]
[312229198,1705696271176,-1163.77,0.00025205,2]
[312229199,1705696271186,-162.1882341,0.00025205,2]
[312229200,1705696271196,-500.0,0.00025205,2]
[312229201,1705696271206,-753.2,0.00025205,2]
[312229202,1705696271218,-500.0,0.00025205,2]
[312229203,1705696271228,-500.0,0.00025205,2]
[312229204,1705696271239,-500.0,0.00025205,2]
[312229205,1705696271249,-500.0,0.00025205,2]
[312229206,1705696271258,-796.68,0.00025205,2]
[312229207,1705696271268,-281.08,0.00025205,2]
[312229208,1705696271277,-500.0,0.00025205,2]
[312229209,1705696271287,-500.0,0.00025205,2]
[312229210,1705696271296,-663.44,0.00025205,2]
[312229211,1705696271307,-500.0,0.00025205,2]
[312229212,1705696271317,-517.21991379,0.00025205,2]
[312229213,1705696271326,-500.0,0.00025205,2]
[312229214,1705696271337,-500.0,0.00025205,2]
[312229215,1705696271354,-545.0,0.00025205,2]
[312229216,1705696271364,-500.0,0.00025205,2]
[312229217,1705696271375,-2028.55,0.00025205,2]
[312229218,1705696271386,-500.0,0.00025205,2]
[312229219,1705696271396,-500.0,0.00025205,2]
[312229220,1705696271406,-1637.3,0.00025205,2]
[312229221,1705696271417,-500.0,0.00025205,2]
[312229222,1705696271427,-500.0,0.00025205,2]
[312229223,1705696271437,-1597.97,0.00025205,2]
[312229224,1705696271447,-551.65,0.00025205,2]
[312229225,1705696271456,-500.0,0.00025205,2]
[312229226,1705696271465,-500.0,0.00025205,2]
[312229227,1705696271474,-1095.9,0.00025205,2]
[312229228,1705696271484,-500.0,0.00025205,2]
[312229229,1705696271494,-500.0,0.00025205,2]
[312229230,1705696271503,-500.0,0.00025205,2]
[312229231,1705696271514,-500.0,0.00025205,2]
[312229232,1705696271522,-500.0,0.00025205,2]
[312229233,1705696271532,-295.57358451,0.00025205,2]
[312229234,1705696271543,-500.0,0.00025205,2]
[312229235,1705696271553,-500.0,0.00025205,2]
[312229236,1705696271564,-617.48,0.00025205,2]
[312229237,1705696271574,-2179.69,0.00025205,2]
[312229238,1705696271583,-210.67,0.00025205,2]
[312229239,1705696271597,-500.0,0.00025205,2]
[312229240,1705696271607,-500.0,0.00025205,2]
[312229241,1705696271617,-500.0,0.00025205,2]
[312229242,1705696271627,-500.0,0.00025205,2]
[312229243,1705696271636,-500.0,0.00025205,2]
[312229244,1705696271645,-500.0,0.00025205,2]
[312229245,1705696271655,-500.0,0.00025205,2]
[312229246,1705696271664,-566.79,0.00025205,2]
[312229247,1705696271673,-750.05,0.00025205,2]
[312229248,1705696271682,-500.0,0.00025205,2]
[312229249,1705696271692,-416.02,0.00025205,2]
[312229250,1705696271702,-509.19,0.00025205,2]
[312229251,1705696271711,-575.17,0.00025205,2]
[312229252,1705696271721,-2367.18,0.00025205,2]
[312229253,1705696271730,-564.64,0.00025205,2]
[312229254,1705696271740,-500.0,0.00025205,2]
[312229255,1705696271749,-434.57,0.00025205,2]
[312229256,1705696271759,-500.0,0.00025205,2]
[312229257,1705696271769,-500.0,0.00025205,2]
[312229258,1705696271779,-529.05,0.00025205,2]
[312229259,1705696271788,-500.0,0.00025205,2]
[312229260,1705696271797,-500.0,0.00025205,2]
[312229261,1705696271806,-819.7,0.00025205,2]
[312229262,1705696271816,-500.0,0.00025205,2]
[312229263,1705696271825,-500.0,0.00025205,2]
[312229264,1705696271835,-2201.85,0.00025205,2]
[312229265,1705696271848,-500.0,0.00025205,2]
[312229266,1705696271858,-500.0,0.00025205,2]
[312229267,1705696271868,-500.0,0.00025205,2]
[312229268,1705696271878,-500.0,0.00025205,2]
[312229269,1705696271887,-500.0,0.00025205,2]
[312229270,1705696271898,-575.54,0.00025205,2]
[312229271,1705696271907,-500.0,0.00025205,2]
[312229272,1705696271917,-285.92,0.00025205,2]
[312229273,1705696271927,-1092.13,0.00025205,2]
[312229274,1705696271936,-531.18,0.00025205,2]
[312229275,1705696271946,-1042.45,0.00025205,2]
[312229276,1705696271955,-2013.8,0.00025205,2]
[312229277,1705696271965,-299.69,0.00025205,2]
[312229278,1705696271975,-2082.59,0.00025205,2]
[312229279,1705696271984,-500.0,0.00025205,2]
[312229280,1705696271994,-1187.36,0.00025205,2]
[312229281,1705696272003,-500.0,0.00025205,2]
[312229282,1705696272013,-500.0,0.00025205,2]
[312229283,1705696272023,-500.0,0.00025205,2]
[312229284,1705696272033,-659.04,0.00025205,2]
[312229285,1705696272042,-178.81,0.00025205,2]
[312229286,1705696272051,-572.86,0.00025205,2]
[312229287,1705696272076,-500.0,0.00025205,2]
[312229288,1705696272304,-500.0,0.00025205,2]
[312229289,1705696272315,-1021.11,0.00025205,2]
[312229290,1705696272326,-799.97,0.00025205,2]
[312229291,1705696272336,-500.0,0.00025205,2]
[312229292,1705696272347,-723.28,0.00025205,2]
[312229293,1705696272357,-555.66,0.00025205,2]
[312229294,1705696272367,-500.0,0.00025205,2]
[312229295,1705696272376,-500.0,0.00025205,2]
[312229296,1705696272386,-505.33,0.00025205,2]
[312229297,1705696272395,-500.0,0.00025205,2]
[312229298,1705696272405,-500.0,0.00025205,2]
[312229299,1705696272415,-1092.31,0.00025205,2]
[312229300,1705696272425,-500.0,0.00025205,2]
[312229301,1705696272435,-500.0,0.00025205,2]
[312229302,1705696272445,-500.0,0.00025205,2]
[312229303,1705696272454,-425.42,0.00025205,2]
[312229304,1705696272465,-500.0,0.00025205,2]
[312229305,1705696272474,-766.68,0.00025205,2]
[312229306,1705696272484,-500.0,0.00025205,2]
[312229307,1705696272498,-626.37,0.00025205,2]
[312229308,1705696272507,-500.0,0.00025205,2]
[312229309,1705696272517,-500.0,0.00025205,2]
[312229310,1705696272527,-607.37,0.00025205,2]
[312229311,1705696272537,-621.93,0.00025205,2]
[312229312,1705696272547,-500.0,0.00025205,2]
[312229313,1705696272557,-500.0,0.00025205,2]
[312229314,1705696272567,-201.78,0.00025205,2]
[312229315,1705696272576,-500.0,0.00025205,2]
[312229316,1705696272586,-630.91,0.00025205,2]
[312229317,1705696272599,-516.67,0.00025205,2]
[312229318,1705696272609,-500.0,0.00025205,2]
[312229319,1705696272619,-500.0,0.00025205,2]
[312229320,1705696272628,-1034.56,0.00025205,2]
[312229321,1705696272638,-500.0,0.00025205,2]
[312229322,1705696272648,-500.0,0.00025205,2]
[312229323,1705696272658,-1651.65,0.00025205,2]
[312229324,1705696272669,-511.5,0.00025205,2]
[312229325,1705696272678,-760.56,0.00025205,2]
[312229326,1705696272689,-500.0,0.00025205,2]
[312229327,1705696272699,-500.0,0.00025205,2]
[312229328,1705696272709,-500.0,0.00025205,2]
[312229329,1705696272718,-620.38,0.00025205,2]
[312229330,1705696272729,-500.0,0.00025205,2]
[312229331,1705696272740,-553.56,0.00025205,2]
[312229332,1705696272749,-325.62,0.00025205,2]
[312229333,1705696272759,-388.65,0.00025205,2]
[312229334,1705696272769,-180.15,0.00025205,2]
[312229335,1705696272779,-500.0,0.00025205,2]
[312229336,1705696272790,-3607.46,0.00025205,2]
[312229337,1705696272800,-32658.0,0.000253,2]
[312229338,1705696272810,-3156.0,0.000253,2]
[312229339,1705696272820,-155.085926,0.000253,7]
[312229340,1705696272830,-151.0,0.000253,7]
[312229341,1705696272843,-151.0,0.000253,7]
[312229342,1705696272853,-2188.819859,0.000253,7]
[312229343,1705696272862,-2188.819859,0.000253,7]
[312229344,1705696272872,-696.92,0.00025309,2]
[312229345,1705696272883,-151.6187915,0.00025432,2]
[312229346,1705696272893,-151.0,0.00025479,7]
[312229347,1705696272903,-151.0,0.00025479,7]
[312229348,1705696272913,-151.0,0.00025479,7]
[312229349,1705696272922,-151.0,0.00025479,7]
[312229350,1705696272932,-151.0,0.00025479,7]
[312229351,1705696272943,-182.688338,0.00025479,7]
[312229352,1705696272952,-151.0,0.00025479,7]
[312229353,1705696272962,-182.859968,0.00025479,7]
[312229354,1705696272971,-182.859968,0.00025479,7]
[312229355,1705696272981,-220.267706,0.00025479,7]
[312229356,1705696272991,-220.267706,0.00025479,7]
[312229357,1705696273001,-153.111628,0.00025479,7]
[312229358,1705696273011,-510.96,0.00025479,2]
[312229359,1705696273021,-364.14,0.00025479,2]
[312229360,1705696273030,-500.0,0.00025479,2]
[312229361,1705696273041,-495.38,0.00025479,2]
[312229362,1705696273051,-154.44,0.00025479,2]
[312229363,1705696273060,-500.0,0.00025479,2]
[312229364,1705696273070,-951.56,0.00025479,2]
[312229365,1705696273080,-404.37,0.00025479,2]
[312229366,1705696273093,-500.0,0.00025479,2]
[312229367,1705696273103,-500.0,0.00025479,2]
[312229368,1705696273113,-500.0,0.00025479,2]
[312229369,1705696273122,-185.35,0.00025479,2]
[312229370,1705696273134,-640.11,0.00025479,2]
[312229371,1705696273145,-500.0,0.00025479,2]
[312229372,1705696273154,-290.17,0.00025479,2]
[312229373,1705696273165,-381.57,0.00025479,2]
[312229374,1705696273174,-500.0,0.00025479,2]
[312229375,1705696273187,-500.0,0.00025479,2]
[312229376,1705696273197,-469.75,0.00025479,2]
[312229377,1705696273209,-500.0,0.00025479,2]
[312229378,1705696273219,-500.0,0.00025479,2]
[312229379,1705696273230,-500.0,0.00025479,2]
[312229380,1705696273239,-500.0,0.00025479,2]
[312229381,1705696273249,-490.93,0.00025479,2]
[312229382,1705696273259,-500.0,0.00025479,2]
[312229383,1705696273269,-500.0,0.00025479,2]
[312229384,1705696273278,-162.97,0.00025479,2]
[312229385,1705696273288,-500.0,0.00025479,2]
[312229386,1705696273298,-500.0,0.00025479,2]
[312229387,1705696273308,-173.47,0.00025479,2]
[312229388,1705696273317,-500.0,0.00025479,2]
[312229389,1705696273327,-500.0,0.00025479,2]
[312229390,1705696273337,-500.0,0.00025479,2]
[312229391,1705696273351,-376.19,0.00025479,2]
[312229392,1705696273360,-500.0,0.00025479,2]
[312229393,1705696273370,-173.73,0.00025479,2]
[312229394,1705696273379,-500.0,0.00025479,2]
[312229395,1705696273390,-500.0,0.00025479,2]
[312229396,1705696273399,-500.0,0.00025479,2]
[312229397,1705696273410,-500.0,0.00025479,2]
[312229398,1705696273419,-236.28,0.00025479,2]
[312229399,1705696273429,-604.63,0.00025479,2]
[312229400,1705696273439,-193.38681051,0.00025479,2]
[312229401,1705696273448,-500.0,0.00025479,2]
[312229402,1705696273457,-170.77,0.00025479,2]
[312229403,1705696273467,-250.13,0.00025479,2]
[312229404,1705696273477,-287.32,0.00025479,2]
[312229405,1705696273486,-500.0,0.00025479,2]
[312229406,1705696273496,-500.0,0.00025479,2]
[312229407,1705696273505,-500.0,0.00025479,2]
[312229408,1705696273515,-500.0,0.00025479,2]
[312229409,1705696273524,-508.57,0.00025479,2]
[312229410,1705696273533,-500.0,0.00025479,2]
[312229411,1705696273543,-500.0,0.00025479,2]
[312229412,1705696273553,-500.0,0.00025479,2]
[312229413,1705696273562,-500.0,0.00025479,2]
[312229414,1705696273572,-500.0,0.00025479,2]
[312229415,1705696273581,-500.0,0.00025479,2]
[312229416,1705696273592,-539.43,0.00025479,2]
[312229417,1705696273602,-191.07,0.00025479,2]
[312229418,1705696273611,-500.0,0.00025479,2]
[312229419,1705696273621,-639.93,0.00025479,2]
[312229420,1705696273630,-562.49,0.00025479,2]
[312229421,1705696273640,-500.0,0.00025479,2]
[312229422,1705696273650,-500.0,0.00025479,2]
[312229423,1705696273660,-460.62282025,0.00025479,2]
[312229424,1705696273669,-500.0,0.00025479,2]
[312229425,1705696273679,-500.0,0.00025479,2]
[312229426,1705696273688,-500.0,0.00025479,2]
[312229427,1705696273698,-500.0,0.00025479,2]
[312229428,1705696273707,-500.0,0.00025479,2]
[312229429,1705696273718,-244.35030773,0.00025479,2]
[312229430,1705696273727,-500.0,0.00025479,2]
[312229431,1705696273737,-178.42,0.00025479,2]
[312229432,1705696273747,-500.0,0.00025479,2]
[312229433,1705696273757,-500.0,0.00025479,2]
[312229434,1705696273766,-500.0,0.00025479,2]
[312229435,1705696273776,-500.0,0.00025479,2]
[312229436,1705696273786,-500.0,0.00025479,2]
[312229437,1705696273795,-626.33,0.00025479,2]
[312229438,1705696273805,-500.0,0.00025479,2]
[312229439,1705696273814,-426.27,0.00025479,2]
[312229440,1705696273824,-500.0,0.00025479,2]
[312229441,1705696273833,-500.0,0.00025479,2]
[312229442,1705696273845,-489.68,0.00025479,2]
[312229443,1705696273854,-500.0,0.00025479,2]
[312229444,1705696273864,-363.63,0.00025479,2]
[312229445,1705696273874,-500.0,0.00025479,2]
[312229446,1705696273883,-500.0,0.00025479,2]
[312229447,1705696273893,-179.41,0.00025479,2]
[312229448,1705696273902,-500.0,0.00025479,2]
[312229449,1705696273912,-618.70427263,0.00025479,2]
[312229450,1705696273921,-500.0,0.00025479,2]
[312229451,1705696273931,-514.31292017,0.00025479,2]
[312229452,1705696273941,-588.36,0.00025479,2]
[312229453,1705696273950,-376.83,0.00025479,2]
[312229454,1705696273960,-406.18,0.00025479,2]
[312229455,1705696273969,-500.0,0.00025479,2]
[312229456,1705696273978,-500.0,0.00025479,2]
[312229457,1705696273988,-500.0,0.00025479,2]
[312229458,1705696273997,-500.0,0.00025479,2]
[312229459,1705696274007,-388.19,0.00025479,2]
[312229460,1705696274017,-500.0,0.00025479,2]
[312229461,1705696274027,-375.68,0.00025479,2]
[312229462,1705696274037,-500.0,0.00025479,2]
[312229463,1705696274047,-500.0,0.00025479,2]
[312229464,1705696274057,-500.0,0.00025479,2]
[312229465,1705696274066,-417.59,0.00025479,2]
[312229466,1705696274077,-500.0,0.00025479,2]
[312229467,1705696274086,-500.0,0.00025479,2]
[312229468,1705696274098,-266.75,0.00025479,2]
[312229469,1705696274108,-500.0,0.00025479,2]
[312229470,1705696274120,-500.0,0.00025479,2]
[312229471,1705696274131,-300.46,0.00025479,2]
[312229472,1705696274141,-500.0,0.00025479,2]
[312229473,1705696274151,-500.0,0.00025479,2]
[312229474,1705696274160,-500.0,0.00025479,2]
[312229475,1705696274170,-500.0,0.00025479,2]
[312229476,1705696274179,-500.0,0.00025479,2]
[312229477,1705696274187,-500.0,0.00025479,2]
[312229478,1705696274197,-374.29,0.00025479,2]
[312229479,1705696274206,-563.74,0.00025479,2]
[312229480,1705696274217,-291.79,0.00025479,2]
[312229481,1705696274227,-500.0,0.00025479,2]
[312229482,1705696274236,-489.38,0.00025479,2]
[312229483,1705696274246,-514.47,0.00025479,2]
[312229484,1705696274256,-500.0,0.00025479,2]
[312229485,1705696274265,-500.0,0.00025479,2]
[312229486,1705696274275,-500.0,0.00025479,2]
[312229487,1705696274285,-500.0,0.00025479,2]
[312229488,1705696274293,-507.85,0.00025479,2]
[312229489,1705696274303,-500.0,0.00025479,2]
[312229490,1705696274312,-196.69,0.00025479,2]
[312229491,1705696274322,-603.93,0.00025479,2]
[312229492,1705696274331,-500.0,0.00025479,2]
[312229493,1705696274340,-484.84,0.00025479,2]
[312229494,1705696274353,-500.0,0.00025479,2]
[312229495,1705696274362,-378.92,0.00025479,2]
[312229496,1705696274373,-269.75,0.00025479,2]
[312229497,1705696274382,-534.84,0.00025479,2]
[312229498,1705696274392,-500.0,0.00025479,2]
[312229499,1705696274401,-574.18,0.00025479,2]
[312229500,1705696274410,-500.0,0.00025479,2]
[312229501,1705696274419,-500.0,0.00025479,2]
[312229502,1705696274429,-602.96,0.00025479,2]
[312229503,1705696274439,-500.0,0.00025479,2]
[312229504,1705696274449,-500.0,0.00025479,2]
[312229505,1705696274459,-500.0,0.00025479,2]
[312229506,1705696274468,-500.0,0.00025479,2]
[312229507,1705696274477,-500.0,0.00025479,2]
[312229508,1705696274486,-500.0,0.00025479,2]
[312229509,1705696274495,-238.4,0.00025479,2]
[312229510,1705696274504,-323.29,0.00025479,2]
[312229511,1705696274514,-629.48,0.00025479,2]
[312229512,1705696274523,-245.93,0.00025479,2]
[312229513,1705696274533,-645.34,0.00025479,2]
[312229514,1705696274543,-500.0,0.00025479,2]